bitfinex/quotes_BTCUSD_20250428
["timestamp","ask_amount","ask_price","bid_price","bid_amount"]
[1745802859263,0.34,93405.0,93404.0,0.10264]
[1745802859464,0.949477,93405.0,93404.0,0.10164]
[1745802859821,1.387805,93405.0,93404.0,0.10464]
[1745802860021,0.342,93405.0,93404.0,0.10364]
[1745802860222,1.38753,93405.0,93404.0,0.10364]
[1745802860452,1.38753,93405.0,93404.0,0.10464]
[1745802861091,1.38753,93405.0,93404.0,0.12686753]
[1745802861297,0.342,93405.0,93404.0,0.12686753]
[1745802861512,0.342,93405.0,93404.0,0.17646753]
[1745802861720,0.341,93405.0,93404.0,0.17546753]
[1745802861892,0.341,93405.0,93404.0,0.17646753]
[1745802862093,0.342,93405.0,93404.0,0.17646753]
[1745802862507,0.002,93405.0,93404.0,0.2626707]
[1745802862704,0.002,93405.0,93404.0,0.41676084]
[1745802864147,0.001,93405.0,93404.0,0.41476084]
[1745802864433,0.002,93405.0,93404.0,0.41776084]
[1745802864632,0.001,93405.0,93404.0,0.41676084]
[1745802864837,0.001,93405.0,93404.0,0.41666084]
[1745802865083,0.002,93405.0,93404.0,0.41906084]
[1745802867293,0.002,93405.0,93404.0,0.43360169]
[1745802868074,0.07,93409.0,93408.0,0.01554085]
[1745802868296,0.07,93409.0,93408.0,0.35362838]
[1745802868651,0.00046054,93419.0,93413.0,0.01554085]
[1745802868857,0.00046054,93419.0,93413.0,0.2180714]
[1745802869017,0.00046054,93419.0,93414.0,0.10804085]
[1745802869222,0.0008486,93438.0,93434.0,0.01554085]
[1745802869398,0.0008486,93438.0,93435.0,0.01454085]
[1745802869595,0.0008486,93438.0,93437.0,0.01454085]
[1745802869797,0.0009028,93438.0,93437.0,0.16923099]
[1745802870030,0.0008484,93442.0,93441.0,0.0478]
[1745802870183,0.0008484,93442.0,93441.0,0.15696768]
[1745802870578,0.0008484,93442.0,93441.0,0.2577117]
[1745802870806,0.0008484,93450.0,93442.0,0.01454085]
[1745802871008,0.0008484,93450.0,93443.0,0.10902995]
[1745802871207,0.0008484,93450.0,93443.0,0.11002995]
[1745802871611,0.0008484,93450.0,93443.0,0.21162995]
[1745802872241,0.0018486,93444.0,93443.0,0.21162995]
[1745802872369,0.0018486,93444.0,93443.0,0.30133123]
[1745802872563,0.0018486,93444.0,93443.0,0.30019142]
[1745802873785,0.0018486,93444.0,93443.0,0.29919142]
[1745802873990,0.0028486,93444.0,93443.0,0.30419142]
[1745802874773,0.0018486,93444.0,93443.0,0.30419142]
[1745802874973,0.0028486,93444.0,93443.0,0.30919142]
[1745802875671,0.0028486,93444.0,93443.0,0.39539459]
[1745802876093,0.0028486,93444.0,93443.0,0.39527459]
[1745802878365,0.0028486,93444.0,93443.0,0.14330317]
[1745802878546,0.0028486,93444.0,93443.0,0.19868317]
[1745802878547,0.3428486,93444.0,93443.0,0.19868317]
[1745802878752,0.6597706,93444.0,93443.0,0.19868317]
[1745802879766,0.67961433,93444.0,93443.0,0.19868317]
[1745802880410,0.67861433,93444.0,93443.0,0.19368317]
[1745802880583,0.67961433,93444.0,93443.0,0.22802525]
[1745802880800,0.67861433,93444.0,93443.0,0.22302525]
[1745802881202,0.67861433,93444.0,93443.0,0.22702525]
[1745802881203,0.67961433,93444.0,93443.0,0.22702525]
[1745802884618,0.48677233,93444.0,93443.0,0.22702525]
[1745802884819,0.4669286,93444.0,93443.0,0.22702525]
[1745802885900,0.4669286,93444.0,93443.0,0.19768317]
[1745802888262,0.3428486,93444.0,93443.0,0.19768317]
[1745802888465,0.85354433,93444.0,93443.0,0.19768317]
[1745802890163,0.76172233,93444.0,93443.0,0.19768317]
[1745802892463,0.54602133,93444.0,93443.0,0.19768317]
[1745802892646,0.46342133,93444.0,93443.0,0.22692525]
[1745802895181,0.36269233,93444.0,93443.0,0.22692525]
[1745802895582,0.3428486,93444.0,93443.0,0.22692525]
[1745802896928,0.3428486,93444.0,93443.0,0.27492525]
[1745802897119,0.3428486,93444.0,93443.0,0.38181539]
[1745802897324,0.3428486,93444.0,93443.0,0.39635624]
[1745802897772,0.3428486,93444.0,93443.0,0.44145624]
[1745802899460,0.3428486,93444.0,93443.0,0.4371113]
[1745802901073,0.29266992,93444.0,93443.0,0.4371113]
[1745802901754,0.29266992,93444.0,93443.0,0.42257045]
[1745802901982,0.29266992,93444.0,93443.0,0.31564031]
[1745802909177,0.29366992,93444.0,93443.0,0.09085823]
[1745802909385,1.60208492,93444.0,93443.0,0.009]
[1745802909592,1.70897506,93444.0,93443.0,0.009]
[1745802909806,1.70897506,93444.0,93443.0,0.11032]
[1745802910060,0.49351292,93444.0,93443.0,0.10532]
[1745802910285,0.29266992,93444.0,93443.0,0.11696577]
[1745802910483,0.29266992,93444.0,93443.0,0.11296577]
[1745802910484,0.29166992,93444.0,93443.0,0.11296577]
[1745802910895,1.26111692,93444.0,93443.0,0.11396577]
[1745802911312,1.26011692,93444.0,93443.0,0.11396577]
[1745802911523,1.01810792,93444.0,93443.0,0.11357176]
[1745802911914,0.90223892,93444.0,93443.0,0.10192599]
[1745802912089,0.90123892,93444.0,93443.0,0.10492599]
[1745802912294,0.90123892,93444.0,93443.0,0.10792599]
[1745802912295,0.90223892,93444.0,93443.0,0.10792599]
[1745802912499,0.90223892,93444.0,93443.0,0.007]
[1745802912708,0.90223892,93444.0,93443.0,0.10836]
[1745802914506,0.90223892,93444.0,93443.0,0.12739559]
[1745802914909,0.90223892,93444.0,93443.0,0.10836]
[1745802916677,0.67074192,93444.0,93443.0,0.10836]
[1745802922054,0.63677092,93444.0,93443.0,0.10836]
[1745802923537,0.63677092,93444.0,93443.0,0.28341823]
[1745802923538,0.002,93444.0,93443.0,0.28341823]
[1745802923744,0.002,93444.0,93443.0,0.28894837]
[1745802923955,0.002,93444.0,93443.0,0.43475782]
[1745802924791,0.001,93444.0,93443.0,0.43175782]
[1745802924982,0.0008486,93446.0,93444.0,0.01454085]
[1745802925220,0.0008486,93446.0,93445.0,0.12357082]
[1745802925941,0.0008486,93446.0,93445.0,0.11002997]
[1745802926146,0.0008486,93446.0,93445.0,0.04518928]
[1745802926339,0.0007551,93446.0,93445.0,0.04518928]
[1745802926744,0.0007551,93446.0,93445.0,0.10236]
[1745802927779,0.0007551,93446.0,93445.0,0.10436]
[1745802928212,1.36846024,93446.0,93443.0,0.001]
[1745802928424,0.34,93426.0,93413.0,0.001]
[1745802928634,0.2,93432.0,93405.0,0.0004241]
[1745802928635,0.34,93416.0,93412.0,0.10136]
[1745802928853,0.54,93406.0,93405.0,0.00088464]
[1745802929084,2.85960995,93406.0,93405.0,0.00088464]
[1745802929287,2.88801248,93406.0,93405.0,0.00088464]
[1745802929693,2.85960995,93406.0,93405.0,0.00088464]
[1745802929928,2.96650009,93406.0,93405.0,0.00088464]
[1745802930364,2.99485072,93406.0,93405.0,0.00088464]
[1745802930574,1.90670514,93406.0,93405.0,0.00088464]
[1745802931199,2.97250009,93406.0,93405.0,0.00188464]
[1745802931411,2.96650009,93406.0,93405.0,0.00088464]
[1745802931619,2.97350009,93406.0,93405.0,0.00188464]
[1745802932040,2.97650009,93406.0,93405.0,0.00088464]
[1745802932903,2.97350009,93406.0,93405.0,0.00088464]
[1745802933124,2.97850009,93406.0,93405.0,0.00188464]
[1745802933685,2.98250009,93406.0,93405.0,0.00288464]
[1745802934164,2.97550009,93406.0,93405.0,0.00188464]
[1745802934361,2.97650009,93406.0,93405.0,0.00188464]
[1745802934654,2.98150009,93406.0,93405.0,0.00288464]
[1745802935111,0.34,93405.0,93403.0,0.00083768]
[1745802935288,0.44689014,93404.0,93403.0,0.00083768]
[1745802936111,1.70670514,93404.0,93403.0,0.00083768]
[1745802936317,1.90670514,93404.0,93403.0,0.00183768]
[1745802936948,1.91270514,93404.0,93403.0,0.00283768]
[1745802937346,1.91270514,93404.0,93403.0,0.00183768]
[1745802937757,1.91770514,93404.0,93403.0,0.00283768]
[1745802942116,1.57770514,93404.0,93403.0,0.00370003]
[1745802942318,0.771741,93404.0,93403.0,0.00470003]
[1745802942525,1.111741,93404.0,93403.0,0.00470003]
[1745802943395,1.105741,93404.0,93403.0,0.00370003]
[1745802943547,1.107741,93404.0,93403.0,0.00470003]
[1745802943951,1.102741,93404.0,93403.0,0.00370003]
[1745802944135,1.105741,93404.0,93403.0,0.00370003]
[1745802944547,1.102741,93404.0,93403.0,0.00370003]
[1745802944945,1.103741,93404.0,93403.0,0.00370003]
[1745802946396,0.343,93404.0,93403.0,0.00370003]
[1745802946820,1.602815,93404.0,93403.0,0.00370003]
[1745802947014,0.343,93404.0,93403.0,0.00370003]
[1745802947233,1.602815,93404.0,93403.0,0.00370003]
[1745802947636,1.602815,93404.0,93403.0,0.00270003]
[1745802948097,1.70970514,93404.0,93403.0,0.00270003]
[1745802949364,1.70770514,93404.0,93403.0,0.00170003]
[1745802949568,1.70970514,93404.0,93403.0,0.00270003]
[1745802949970,1.70870514,93404.0,93403.0,0.00270003]
[1745802950408,1.70870514,93404.0,93403.0,0.00170003]
[1745802950759,1.71070514,93404.0,93403.0,0.00270003]
[1745802951182,1.71370514,93404.0,93403.0,0.00270003]
[1745802951883,1.91370514,93404.0,93403.0,0.00270003]
[1745802954247,1.33297,93404.0,93403.0,0.06615973]
[1745802954662,1.33297,93404.0,93403.0,0.00370003]
[1745802958081,1.3497278,93404.0,93403.0,0.00370003]
[1745802961012,0.2,93431.0,93414.0,0.001]
[1745802961209,0.21675439,93438.0,93414.0,0.17835823]
[1745802961416,0.01675439,93438.0,93437.0,0.001]
[1745802961617,0.01675439,93438.0,93437.0,0.10228]
[1745802961821,0.78804219,93438.0,93437.0,0.161008]
[1745802962044,1.99171219,93438.0,93437.0,0.161008]
[1745802962247,1.98178439,93438.0,93437.0,0.161008]
[1745802962658,1.85032439,93438.0,93437.0,0.161008]
[1745802962831,1.85032439,93438.0,93437.0,0.162008]
[1745802963121,1.85332439,93438.0,93437.0,0.162008]
[1745802963336,1.85332439,93438.0,93437.0,0.24386623]
[1745802963337,0.274482,93438.0,93437.0,0.24386623]
[1745802963545,0.139987,93438.0,93437.0,0.24386623]
[1745802963872,0.140987,93438.0,93437.0,0.24386623]
[1745802964282,0.139987,93438.0,93437.0,0.24386623]
[1745802964692,0.05084393,93442.0,93437.0,0.24286623]
[1745802964893,1.980888,93441.0,93438.0,0.00214022]
[1745802965110,0.001,93438.0,93437.0,0.24286623]
[1745802965318,0.34,93438.0,93437.0,0.24286623]
[1745802965550,0.34,93438.0,93437.0,0.24386623]
[1745802965756,0.949374,93438.0,93437.0,0.24386623]
[1745802966132,0.960989,93438.0,93437.0,0.24286623]
[1745802966520,0.960989,93438.0,93437.0,0.24486623]
[1745802967702,0.960989,93438.0,93437.0,0.18513823]
[1745802967938,0.960989,93438.0,93437.0,0.18613823]
[1745802968805,0.786156,93438.0,93437.0,0.18613823]
[1745802969008,0.613771,93438.0,93437.0,0.18613823]
[1745802969194,0.547989,93438.0,93437.0,0.18613823]
[1745802969497,0.547989,93438.0,93437.0,0.20463205]
[1745802969646,0.497698,93438.0,93437.0,0.25063205]
[1745802969856,0.497698,93438.0,93437.0,0.24863205]
[1745802969857,0.115012,93438.0,93437.0,0.24863205]
[1745802970063,0.0008486,93442.0,93437.0,0.35552219]
[1745802970282,0.0008486,93442.0,93438.0,0.10903007]
[1745802970493,0.0008486,93442.0,93439.0,0.03616621]
[1745802970751,0.34,93441.0,93440.0,0.00214003]
[1745802970951,0.559713,93441.0,93440.0,0.00214003]
[1745802971137,0.559713,93441.0,93439.0,0.001]
[1745802971138,0.34,93440.0,93439.0,0.001]
[1745802971379,1.087436,93440.0,93439.0,0.10216]
[1745802971590,1.087436,93440.0,93439.0,0.12586182]
[1745802971741,1.05651,93440.0,93439.0,0.12586182]
[1745802972165,1.026723,93440.0,93439.0,0.12586182]
[1745802972363,1.027723,93440.0,93439.0,0.13186182]
[1745802972575,1.027723,93440.0,93439.0,0.21372005]
[1745802972910,1.027723,93440.0,93439.0,0.21872005]
[1745802975216,0.001,93440.0,93439.0,0.21872005]
[1745802975442,1.107748,93440.0,93439.0,0.21872005]
[1745802975577,1.107748,93440.0,93439.0,0.11756005]
[1745802975784,1.107748,93440.0,93439.0,0.21868005]
[1745802976180,1.00876,93440.0,93439.0,0.21868005]
[1745802976611,0.730503,93440.0,93439.0,0.21868005]
[1745802976817,0.46673,93440.0,93439.0,0.21868005]
[1745802978273,0.46673,93440.0,93439.0,0.19497823]
[1745802978482,0.46673,93440.0,93439.0,0.09599849]
[1745802978483,0.341,93440.0,93439.0,0.09599849]
[1745802978691,0.341,93440.0,93439.0,0.24421849]
[1745802978894,0.47101,93440.0,93439.0,0.24207823]
[1745802979103,0.507051,93440.0,93439.0,0.27088605]
[1745802979512,0.461127,93440.0,93439.0,0.27088605]
[1745802980883,0.341,93440.0,93439.0,0.27088605]
[1745802982089,0.341,93440.0,93439.0,0.37777619]
[1745802991355,0.341,93440.0,93439.0,0.39331704]
[1745802993290,0.001,93440.0,93439.0,0.39331704]
[1745802994122,0.688576,93440.0,93439.0,0.19597823]
[1745802994342,1.028576,93440.0,93439.0,0.19597823]
[1745802994783,0.977457,93440.0,93439.0,0.19597823]
[1745802995001,0.609568,93440.0,93439.0,0.19597823]
[1745802995217,0.608568,93440.0,93439.0,0.18497823]
[1745802995428,0.608568,93440.0,93439.0,0.20347605]
[1745802996297,0.608568,93440.0,93439.0,0.20647605]
[1745802996511,0.608568,93440.0,93439.0,0.20847605]
[1745802996722,0.608568,93440.0,93439.0,0.20647605]
[1745802997179,0.609568,93440.0,93439.0,0.20947605]
[1745802997997,0.001,93440.0,93439.0,0.37870704]
[1745802999256,0.121288,93440.0,93439.0,0.20947605]
[1745802999465,0.121288,93440.0,93439.0,0.19097823]
[1745802999668,0.121288,93440.0,93439.0,0.08985823]
[1745802999881,0.121288,93440.0,93439.0,0.19085823]
[1745803000096,0.121288,93440.0,93439.0,0.08985823]
[1745803000303,0.121288,93440.0,93439.0,0.19085823]
[1745803000556,0.121288,93440.0,93439.0,0.18985823]
[1745803000700,0.56817814,93440.0,93439.0,0.007]
[1745803000948,0.61727814,93440.0,93439.0,0.007]
[1745803001158,0.69162472,93440.0,93439.0,0.007]
[1745803001385,0.3561,93427.0,93426.0,0.1]
[1745803001591,4.17993514,93427.0,93426.0,5.42e-05]
[1745803001760,3.96742214,93427.0,93426.0,5.42e-05]
[1745803001961,3.96742214,93427.0,93410.0,0.101]
[1745803001962,0.34,93414.0,93410.0,0.101]
[1745803002205,0.34,93412.0,93410.0,0.101]
[1745803002419,4.97618514,93411.0,93410.0,0.101]
[1745803002611,4.85881414,93411.0,93410.0,0.101]
[1745803003008,4.80891914,93411.0,93410.0,0.101]
[1745803003624,0.34,93405.0,93404.0,0.08185823]
[1745803003859,3.89229,93405.0,93404.0,0.08185823]
[1745803004826,3.59862014,93405.0,93404.0,0.08185823]
[1745803005026,3.79962014,93405.0,93404.0,0.002]
[1745803005422,3.47308014,93405.0,93404.0,0.005]
[1745803005855,3.47308014,93405.0,93404.0,0.01568377]
[1745803006023,3.47308014,93405.0,93404.0,0.005]
[1745803006223,3.44012814,93405.0,93404.0,0.003]
[1745803006450,3.44212814,93405.0,93404.0,0.004]
[1745803006679,3.44212814,93405.0,93404.0,0.001]
[1745803007638,3.335238,93405.0,93404.0,0.01138377]
[1745803007832,3.335238,93405.0,93404.0,0.001]
[1745803010312,3.335238,93405.0,93404.0,0.002]
[1745803010313,1.797052,93405.0,93404.0,0.002]
[1745803010526,0.302386,93405.0,93404.0,0.08385823]
[1745803010730,0.302386,93405.0,93404.0,0.1204901]
[1745803010731,0.149739,93405.0,93404.0,0.1204901]
[1745803011106,0.489739,93405.0,93404.0,0.1204901]
[1745803011313,0.489739,93405.0,93404.0,0.08385823]
[1745803011715,0.489739,93405.0,93404.0,0.18489823]
[1745803012461,0.489739,93405.0,93404.0,0.18389823]
[1745803014188,0.489739,93405.0,93404.0,0.08285823]
[1745803016792,0.489739,93405.0,93404.0,0.10243182]
[1745803016994,0.489739,93405.0,93404.0,0.08385823]
[1745803019450,0.467524,93405.0,93404.0,0.08385823]
[1745803020245,0.465524,93405.0,93404.0,0.08285823]
[1745803020413,0.465524,93405.0,93404.0,0.08485823]
[1745803020612,0.466524,93405.0,93404.0,0.08685823]
[1745803020879,0.341,93405.0,93404.0,0.08285823]
[1745803021096,0.473071,93405.0,93404.0,0.08285823]
[1745803021301,0.474071,93405.0,93404.0,0.08885823]
[1745803022346,0.44889014,93405.0,93404.0,0.006]
[1745803022616,0.44889014,93405.0,93380.0,0.01005]
[1745803022617,0.54,93401.0,93380.0,0.01005]
[1745803022850,0.53237164,93397.0,93380.0,0.01005]
[1745803023063,5.53237164,93397.0,93380.0,0.01005]
[1745803023501,5.45662164,93397.0,93380.0,0.01005]
[1745803023742,5.50572164,93397.0,93380.0,0.01005]
[1745803023997,5.50572164,93397.0,93396.0,2.898146]
[1745803024209,5.58160965,93397.0,93396.0,2.897146]
[1745803024416,4.81250465,93397.0,93396.0,2.897146]
[1745803024627,4.81950465,93397.0,93396.0,2.898146]
[1745803024840,4.30015715,93397.0,93396.0,2.898146]
[1745803025051,4.26429215,93397.0,93396.0,2.899146]
[1745803025271,4.04857715,93397.0,93396.0,2.899146]
[1745803025474,3.97943715,93397.0,93396.0,2.899146]
[1745803025625,3.86194715,93397.0,93396.0,2.899146]
[1745803025832,3.83373715,93397.0,93396.0,2.899146]
[1745803026035,3.63888115,93397.0,93396.0,2.899146]
[1745803026448,3.83888115,93397.0,93396.0,2.899146]
[1745803029187,3.98395111,93397.0,93396.0,2.899146]
[1745803030806,3.98495111,93397.0,93396.0,2.899146]
[1745803031435,3.98495111,93397.0,93396.0,2.22317226]
[1745803031436,1.07173896,93397.0,93396.0,2.22317226]
[1745803031641,1.02873896,93397.0,93396.0,2.11874636]
[1745803031854,1.07873896,93397.0,93396.0,2.11264636]
[1745803032372,1.10393896,93397.0,93396.0,2.11164636]
[1745803032628,1.16757524,93397.0,93396.0,2.11164636]
[1745803032826,1.17657524,93397.0,93396.0,2.11264636]
[1745803033033,1.17657524,93397.0,93396.0,2.11164636]
[1745803033034,1.16857524,93397.0,93396.0,2.11164636]
[1745803033234,1.15957524,93397.0,93396.0,2.11064636]
[1745803033458,1.16857524,93397.0,93396.0,2.11064636]
[1745803033668,1.18157524,93397.0,93396.0,2.11164636]
[1745803034083,1.17257524,93397.0,93396.0,1.43567262]
[1745803034463,1.18557524,93397.0,93396.0,1.43567262]
[1745803035127,1.12193896,93397.0,93396.0,1.43567262]
[1745803035561,1.03973896,93397.0,93396.0,1.43567262]
[1745803036363,1.08973896,93397.0,93396.0,1.43567262]
[1745803040760,1.50033896,93397.0,93396.0,1.43567262]
[1745803040952,1.7218786,93397.0,93396.0,1.43567262]
[1745803041341,1.7218786,93397.0,93396.0,0.71590962]
[1745803041552,1.7218786,93397.0,93396.0,0.67202162]
[1745803041673,1.75473421,93397.0,93396.0,0.67202162]
[1745803041884,1.10773896,93397.0,93396.0,0.67202162]
[1745803042094,1.50773896,93397.0,93396.0,0.67202162]
[1745803042477,1.50773896,93397.0,93389.0,4.75794238]
[1745803042478,1.01890085,93390.0,93389.0,4.75794238]
[1745803042680,2.47206744,93390.0,93389.0,3.33391298]
[1745803042888,0.89378117,93383.0,93382.0,4.03924742]
[1745803043095,1.06430759,93383.0,93382.0,2.65906708]
[1745803043296,1.20377526,93383.0,93382.0,1.80138774]
[1745803043501,1.90937005,93383.0,93382.0,1.33645969]
[1745803043740,1.90937005,93383.0,93382.0,0.90762002]
[1745803043900,1.93543901,93383.0,93382.0,0.43467764]
[1745803044224,1.93543901,93383.0,93375.0,4.98719516]
[1745803044225,0.86890085,93376.0,93375.0,4.98719516]
[1745803044426,6.38013259,93376.0,93375.0,4.98719516]
[1745803044632,7.61849483,93376.0,93375.0,4.95101918]
[1745803044826,7.43652004,93376.0,93375.0,4.95101918]
[1745803045030,3.62178139,93376.0,93375.0,4.95101918]
[1745803045714,3.52078139,93376.0,93375.0,4.95101918]
[1745803046151,2.82778139,93376.0,93375.0,4.95101918]
[1745803046609,2.83178139,93376.0,93375.0,4.95101918]
[1745803046800,2.82078139,93376.0,93375.0,4.95101918]
[1745803047010,2.83978139,93376.0,93375.0,4.95101918]
[1745803047957,2.94078139,93376.0,93375.0,4.95101918]
[1745803048734,3.64078139,93376.0,93375.0,4.95101918]
[1745803050694,2.94078139,93376.0,93375.0,4.95101918]
[1745803051280,2.93338139,93376.0,93375.0,4.95101918]
[1745803051868,2.95015266,93376.0,93375.0,4.95101918]
[1745803052764,2.95755266,93376.0,93375.0,4.95101918]
[1745803052967,2.85655266,93376.0,93375.0,4.95101918]
[1745803053167,2.45655266,93376.0,93375.0,4.95101918]
[1745803053494,2.79201181,93376.0,93375.0,4.95101918]
[1745803053898,3.55655266,93376.0,93375.0,4.95101918]
[1745803054692,3.16655266,93376.0,93375.0,4.95101918]
[1745803054894,3.05543881,93376.0,93375.0,4.95101918]
[1745803055110,3.05543881,93376.0,93375.0,3.31056018]
[1745803055111,3.11973881,93376.0,93375.0,3.31056018]
[1745803055328,2.80973881,93376.0,93375.0,1.8e-07]
[1745803055531,2.82427966,93376.0,93375.0,1.8e-07]
[1745803055948,2.77427966,93376.0,93375.0,1.8e-07]
[1745803059050,2.70997966,93376.0,93375.0,1.8e-07]
[1745803059255,2.68803881,93376.0,93375.0,1.8e-07]
[1745803059501,2.34803881,93376.0,93375.0,1.8e-07]
[1745803059808,2.68803881,93376.0,93375.0,1.8e-07]
[1745803059982,2.34803881,93376.0,93375.0,1.8e-07]
[1745803060536,1.53743881,93376.0,93375.0,1.8e-07]
[1745803060665,0.47764386,93376.0,93375.0,0.09640018]
[1745803060866,0.47764386,93376.0,93375.0,0.09740018]
[1745803061069,0.81764386,93376.0,93375.0,0.09740018]
[1745803061274,0.45864386,93376.0,93375.0,0.09840018]
[1745803061534,0.79864386,93376.0,93375.0,0.09840018]
[1745803061900,0.47064386,93376.0,93375.0,0.09840018]
[1745803062056,2.06111186,93376.0,93375.0,0.09840018]
[1745803062234,2.06411186,93376.0,93375.0,0.09840018]
[1745803062431,2.01649386,93376.0,93375.0,0.09840018]
[1745803062640,2.01649386,93376.0,93375.0,0.09740018]
[1745803063236,2.01649386,93376.0,93375.0,0.09840018]
[1745803063884,2.00218386,93376.0,93375.0,0.09840018]
[1745803064291,1.86720141,93376.0,93375.0,0.09840018]
[1745803064501,1.86720141,93376.0,93375.0,0.19932018]
[1745803069165,1.86720141,93376.0,93375.0,0.19828018]
[1745803069795,0.67066141,93376.0,93375.0,0.19828018]
[1745803070831,4.47736241,93376.0,93375.0,0.19828018]
[1745803072051,4.46574041,93376.0,93375.0,0.19828018]
[1745803074046,1.80760541,93376.0,93375.0,0.19928018]
[1745803074707,1.80760541,93376.0,93375.0,0.09840018]
[1745803074933,1.80760541,93376.0,93375.0,0.19928018]
[1745803076200,1.70579241,93376.0,93375.0,0.19928018]
[1745803080558,3.84041941,93376.0,93375.0,0.19928018]
[1745803080776,0.67066141,93376.0,93375.0,0.19928018]
[1745803081541,3.85686241,93376.0,93375.0,0.19928018]
[1745803082857,3.85686241,93376.0,93375.0,0.09740018]
[1745803083061,3.85686241,93376.0,93375.0,0.00100018]
[1745803083515,3.87140326,93376.0,93375.0,0.00100018]
[1745803084181,3.87040326,93376.0,93375.0,0.00100018]
[1745803084420,3.86440326,93376.0,93375.0,0.00100018]
[1745803084632,3.86940326,93376.0,93375.0,0.00100018]
[1745803085032,3.88040326,93376.0,93375.0,0.00100018]
[1745803085220,3.86940326,93376.0,93375.0,0.00100018]
[1745803085743,3.87940326,93376.0,93375.0,0.00100018]
[1745803086053,3.88040326,93376.0,93375.0,0.00100018]
[1745803086257,4.29100326,93376.0,93375.0,0.00100018]
[1745803086480,4.31431364,93376.0,93375.0,0.00100018]
[1745803086709,4.37861364,93376.0,93375.0,0.00100018]
[1745803087410,4.38361364,93376.0,93375.0,0.00100018]
[1745803087833,4.37861364,93376.0,93375.0,0.00100018]
[1745803088037,4.34157863,93376.0,93375.0,0.00100018]
[1745803088262,4.35357863,93376.0,93375.0,0.00100018]
[1745803088466,4.34157863,93376.0,93375.0,0.00100018]
[1745803088818,4.35257863,93376.0,93375.0,0.00100018]
[1745803089030,4.35757863,93376.0,93375.0,0.00100018]
[1745803090238,5.05757863,93376.0,93375.0,0.00100018]
[1745803090406,5.10757863,93376.0,93375.0,0.00100018]
[1745803090959,1.99336763,93376.0,93375.0,0.00100018]
[1745803091253,5.63669863,93376.0,93375.0,0.00100018]
[1745803091455,5.52889863,93376.0,93375.0,1.8e-07]
[1745803091611,1.93241264,93376.0,93375.0,1.8e-07]
[1745803092106,1.94541264,93376.0,93375.0,1.8e-07]
[1745803092289,1.95341264,93376.0,93375.0,1.8e-07]
[1745803092681,1.94541264,93376.0,93375.0,1.8e-07]
[1745803093125,2.35341264,93376.0,93375.0,1.8e-07]
[1745803094793,2.36081264,93376.0,93375.0,1.8e-07]
[1745803096511,1.66081264,93376.0,93375.0,1.8e-07]
[1745803097050,1.66510764,93376.0,93375.0,1.8e-07]
[1745803099281,1.66510764,93376.0,93368.0,5.10122543]
[1745803099282,0.60420385,93369.0,93368.0,5.10122543]
[1745803099525,1.87804017,93369.0,93368.0,5.10122543]
[1745803099913,1.66943111,93369.0,93368.0,5.10122543]
[1745803100464,1.67543111,93369.0,93368.0,5.10122543]
[1745803100764,2.37543111,93369.0,93368.0,5.10122543]
[1745803100964,2.43055976,93369.0,93368.0,5.10122543]
[1745803101147,2.44355976,93369.0,93368.0,5.10122543]
[1745803101495,2.43755976,93369.0,93368.0,5.10122543]
[1745803101933,2.44555976,93369.0,93368.0,5.10122543]
[1745803102332,2.39043111,93369.0,93368.0,5.10122543]
[1745803102728,2.41841378,93369.0,93368.0,5.10122543]
[1745803102930,2.44555976,93369.0,93368.0,5.10122543]
[1745803103402,2.39043111,93369.0,93368.0,5.10122543]
[1745803103923,2.71630944,93369.0,93368.0,5.10122543]
[1745803104404,2.50210559,93369.0,93368.0,5.10122543]
[1745803104605,3.12690944,93369.0,93368.0,5.10122543]
[1745803106003,3.31270559,93369.0,93368.0,5.10122543]
[1745803106218,3.45556474,93369.0,93368.0,5.10122543]
[1745803106365,2.63326474,93369.0,93368.0,5.10122543]
[1745803106576,2.97326474,93369.0,93368.0,5.10122543]
[1745803106773,2.63326474,93369.0,93368.0,5.10122543]
[1745803107052,2.27326474,93369.0,93368.0,5.10122543]
[1745803107203,1.93326474,93369.0,93368.0,5.10122543]
[1745803107404,7.26026474,93369.0,93368.0,5.10122543]
[1745803107634,6.63189774,93369.0,93368.0,5.10122543]
[1745803107993,6.62189774,93369.0,93368.0,5.10122543]
[1745803108208,6.62289774,93369.0,93368.0,5.10122543]
[1745803108444,6.62789774,93369.0,93368.0,5.10122543]
[1745803108877,6.62289774,93369.0,93368.0,5.10122543]
[1745803109198,6.62689774,93369.0,93368.0,5.10122543]
[1745803109831,6.73971474,93369.0,93368.0,5.10122543]
[1745803110061,6.59607874,93369.0,93368.0,5.10122543]
[1745803113487,6.56776836,93369.0,93368.0,5.10122543]
[1745803117575,6.59606021,93369.0,93368.0,5.10122543]
[1745803119020,6.61060106,93369.0,93368.0,5.10122543]
[1745803119196,6.41036706,93369.0,93368.0,5.10122543]
[1745803119389,6.39816106,93369.0,93368.0,5.10122543]
[1745803119708,5.07735002,93369.0,93368.0,5.10122543]
[1745803120585,5.06835002,93369.0,93368.0,5.10122543]
[1745803120787,5.06435002,93369.0,93368.0,5.10122543]
[1745803120982,5.07435002,93369.0,93368.0,5.10122543]
[1745803121243,5.07835002,93369.0,93368.0,5.14942543]
[1745803121575,5.05852621,93369.0,93368.0,5.14942543]
[1745803121787,5.05452621,93369.0,93368.0,5.14942543]
[1745803121983,5.05852621,93369.0,93368.0,5.14942543]
[1745803125853,4.98882821,93369.0,93368.0,5.14942543]
[1745803126136,4.96053636,93369.0,93368.0,5.19542543]
[1745803127005,4.98883719,93369.0,93368.0,5.19542543]
[1745803129460,4.96053636,93369.0,93368.0,5.15912272]
[1745803129773,3.90074141,93369.0,93368.0,5.15912272]
[1745803132971,3.75425541,93369.0,93368.0,5.15912272]
[1745803139376,3.78260569,93369.0,93368.0,5.15912272]
[1745803141946,1.64160769,93369.0,93368.0,5.26701286]
[1745803142184,1.64160769,93369.0,93368.0,5.16112272]
[1745803142185,0.18576462,93369.0,93368.0,5.16112272]
[1745803142359,0.41567448,93369.0,93368.0,5.16112272]
[1745803142573,0.58094148,93369.0,93368.0,5.16112272]
[1745803142977,0.23694148,93369.0,93368.0,5.16112272]
[1745803143184,0.22794148,93369.0,93368.0,5.16112272]
[1745803143429,0.23394148,93369.0,93368.0,5.16112272]
[1745803143631,0.24800548,93369.0,93368.0,5.26801286]
[1745803143851,0.24800548,93369.0,93368.0,5.16112272]
[1745803144072,0.35489562,93369.0,93368.0,5.16012272]
[1745803144294,1.09489562,93369.0,93368.0,5.16012272]
[1745803144717,1.09472583,93369.0,93368.0,5.16012272]
[1745803147236,1.09472583,93369.0,93368.0,5.06592272]
[1745803147237,1.29472583,93369.0,93368.0,5.06592272]
[1745803148104,1.29372583,93369.0,93368.0,5.06592272]
[1745803148316,1.32004508,93369.0,93368.0,5.06592272]